bitfinex/quotes_BTCUSD_20250628
["timestamp","ask_amount","ask_price","bid_price","bid_amount"]
[1751071279872,0.24024222,107110.0,107100.0,0.42326554]
[1751071282526,0.22464222,107110.0,107100.0,0.2157522]
[1751071282724,0.24004222,107110.0,107100.0,0.2064154]
[1751071282925,0.23070612,107110.0,107100.0,0.40459229]
[1751071283139,0.00344601,107110.0,107100.0,0.41392909]
[1751071283291,0.02211708,107110.0,107100.0,0.74024734]
[1751071283493,0.02211708,107110.0,107100.0,0.75664734]
[1751071283702,0.03145284,107110.0,107100.0,0.75664734]
[1751071284732,0.02211708,107110.0,107100.0,0.73794722]
[1751071285142,0.02211709,107110.0,107100.0,0.73794722]
[1751071285570,0.01278142,107110.0,107100.0,0.73794722]
[1751071285758,0.022117,107110.0,107100.0,0.73794722]
[1751071285978,0.03145276,107110.0,107100.0,0.73794722]
[1751071286400,0.03145267,107110.0,107100.0,0.73794722]
[1751071286617,0.03145267,107110.0,107100.0,0.45556519]
[1751071287499,0.022117,107110.0,107100.0,0.45556519]
[1751071288322,0.03145267,107110.0,107100.0,0.45556519]
[1751071290697,0.04078843,107110.0,107100.0,0.45556519]
[1751071291759,0.05012436,107110.0,107100.0,0.45556519]
[1751071292155,0.05012436,107110.0,107100.0,0.43916519]
[1751071297140,0.05012497,107110.0,107100.0,0.43916519]
[1751071298735,0.04078895,107110.0,107100.0,0.43916519]
[1751071301519,0.05012497,107110.0,107100.0,0.43916519]
[1751071303772,0.05012549,107110.0,107100.0,0.43916519]
[1751071308620,0.33254177,107110.0,107100.0,0.43916519]
[1751071310549,0.51926621,107110.0,107100.0,0.43916493]
[1751071310767,0.33254229,107110.0,107100.0,0.43916493]
[1751071312017,0.3232061,107110.0,107100.0,0.43916449]
[1751071316066,0.31387,107110.0,107100.0,0.43916449]
[1751071319815,0.3232061,107110.0,107100.0,0.43916449]
[1751071320973,0.31387,107110.0,107100.0,0.43916449]
[1751071321176,0.30453398,107110.0,107100.0,0.43916449]
[1751071321312,0.31387,107110.0,107100.0,0.43916449]
[1751071324671,0.03145372,107110.0,107100.0,0.43916449]
[1751071327510,0.0314531,107110.0,107100.0,0.43916449]
[1751071327738,0.04078912,107110.0,107100.0,0.43916449]
[1751071328049,0.3325415,107110.0,107100.0,0.43916449]
[1751071328352,0.05012522,107110.0,107100.0,0.43916449]
[1751071328739,0.00344601,107110.0,107100.0,0.53192457]
[1751071329060,0.00344601,107110.0,107100.0,0.82974085]
[1751071334368,0.0127815,107110.0,107100.0,0.82974085]
[1751071334576,0.0127815,107110.0,107100.0,0.54732457]
[1751071334779,0.02211717,107110.0,107100.0,0.82974085]
[1751071335508,0.00344601,107110.0,107100.0,0.82974085]
[1751071335741,0.0127815,107110.0,107100.0,0.82974085]
[1751071335949,0.02211726,107110.0,107100.0,0.81434085]
[1751071336695,0.02211726,107110.0,107100.0,0.81430085]
[1751071337702,0.02211726,107110.0,107100.0,0.62550085]
[1751071337904,0.02211726,107110.0,107100.0,0.81430085]
[1751071338529,0.02211726,107110.0,107100.0,0.62550085]
[1751071338739,0.02211726,107110.0,107100.0,0.81430085]
[1751071339330,0.02211717,107110.0,107100.0,0.81430085]
[1751071339547,0.0127815,107110.0,107100.0,0.81430085]
[1751071340337,0.02211717,107110.0,107100.0,0.81430085]
[1751071340555,0.03145293,107110.0,107100.0,0.81430085]
[1751071341760,0.32320505,107110.0,107100.0,0.36277158]
[1751071341971,0.32320558,107110.0,107100.0,0.52254846]
[1751071342168,0.022117,107110.0,107100.0,0.82046474]
[1751071342369,0.01278142,107110.0,107100.0,0.82046474]
[1751071342690,0.022117,107110.0,107100.0,0.82046474]
[1751071344915,0.03145276,107110.0,107100.0,0.82046474]
[1751071345208,0.022117,107110.0,107100.0,0.82046474]
[1751071345592,0.03145276,107110.0,107100.0,0.82046474]
[1751071348059,0.022117,107110.0,107100.0,0.82046474]
[1751071348239,0.03145276,107110.0,107100.0,0.82046474]
[1751071348779,0.00344601,107110.0,107100.0,0.83500559]
[1751071353351,0.00344601,107110.0,107100.0,1.45742187]
[1751071353817,0.00344601,107110.0,107100.0,1.46115887]
[1751071355860,0.00344601,107110.0,107100.0,1.68523887]
[1751071367849,0.00344601,107110.0,107100.0,0.93160631]
[1751071368066,0.00344601,107110.0,107100.0,1.36900474]
[1751071368462,0.00344601,107110.0,107100.0,1.38354559]
[1751071368862,0.00344601,107110.0,107100.0,1.68246187]
[1751071369345,0.00344601,107110.0,107100.0,1.40004559]
[1751071369784,0.00344601,107110.0,107100.0,1.68246187]
[1751071370229,0.00344601,107110.0,107100.0,1.21128559]
[1751071370449,0.00344601,107110.0,107100.0,1.40012559]
[1751071373436,0.00344601,107110.0,107100.0,1.38362559]
[1751071375609,0.00344601,107110.0,107100.0,1.68254187]
[1751071376493,0.00344601,107110.0,107100.0,1.40012559]
[1751071376948,0.00344601,107110.0,107100.0,1.68254187]
[1751071377169,0.00344601,107110.0,107100.0,1.38362559]
[1751071377375,0.00344601,107110.0,107100.0,1.38354559]
[1751071382126,0.00344601,107110.0,107100.0,1.68196187]
[1751071385590,0.00344601,107110.0,107100.0,1.53156187]
[1751071385802,0.00344601,107110.0,107100.0,1.11712931]
[1751071386019,0.00344601,107110.0,107100.0,1.38424559]
[1751071388894,0.00344601,107110.0,107100.0,1.68246187]
[1751071392595,0.00344601,107110.0,107100.0,1.71980713]
[1751071392993,0.00344601,107110.0,107100.0,1.74783213]
[1751071395323,0.00344601,107110.0,107100.0,1.44674322]
[1751071397088,0.00344601,107110.0,107100.0,1.14565431]
[1751071397346,0.00344601,107110.0,107100.0,1.44674322]
[1751071398006,0.00344601,107110.0,107100.0,1.25798322]
[1751071398203,0.00344601,107110.0,107100.0,1.40291822]
[1751071403985,0.00344601,107110.0,107100.0,1.10182931]
[1751071404194,0.00344601,107110.0,107100.0,1.40291822]
[1751071406590,0.00344601,107110.0,107100.0,1.21415822]
[1751071406928,0.00344601,107110.0,107100.0,1.41861822]
[1751071414721,0.00344601,107110.0,107100.0,1.68220049]
[1751071424557,0.00344601,107110.0,107100.0,1.66650049]
[1751071427044,0.00344601,107110.0,107100.0,0.89646931]
[1751071427247,0.00344601,107110.0,107100.0,1.3675649]
[1751071430023,0.00344601,107110.0,107100.0,1.3832649]
[1751071434526,0.00344601,107110.0,107100.0,1.10092931]
[1751071434728,0.00344601,107110.0,107100.0,1.3832649]
[1751071435637,0.00344601,107110.0,107100.0,1.08522931]
[1751071435810,0.01914601,107110.0,107100.0,1.3675649]
[1751071439215,0.00344601,107110.0,107100.0,1.3675649]
[1751071444935,0.00344601,107110.0,107100.0,1.1434849]
[1751071456179,0.00344601,107110.0,107100.0,1.1594849]
[1751071457260,0.00344601,107110.0,107100.0,1.1754849]
[1751071457672,0.00344601,107110.0,107100.0,1.45782049]
[1751071459275,0.00344601,107110.0,107100.0,0.89314931]
[1751071459482,0.00344601,107110.0,107100.0,1.45782049]
[1751071460373,0.00344601,107110.0,107100.0,1.44182049]
[1751071461285,0.00344601,107110.0,107100.0,1.45782049]
[1751071461515,0.00344601,107110.0,107100.0,1.44182049]
[1751071461801,0.00344601,107110.0,107100.0,1.1594849]
[1751071463115,0.00344601,107110.0,107100.0,1.1753849]
[1751071463868,0.00344601,107110.0,107100.0,1.1594849]
[1751071464489,0.00344601,107110.0,107100.0,1.1753849]
[1751071464670,0.00344601,107110.0,107100.0,1.1594849]
[1751071465934,0.00344601,107110.0,107100.0,1.1753849]
[1751071466736,0.00344601,107110.0,107100.0,1.1594849]
[1751071467370,0.00344601,107110.0,107100.0,0.87714931]
[1751071467510,0.00344601,107110.0,107100.0,1.1434849]
[1751071468121,0.00344601,107110.0,107100.0,0.87704931]
[1751071468327,0.00344601,107110.0,107100.0,1.1593849]
[1751071468934,0.00344601,107110.0,107100.0,1.1434849]
[1751071469492,0.00344601,107110.0,107100.0,1.1593849]
[1751071471834,0.00344601,107110.0,107100.0,0.87696931]
[1751071472041,0.00344601,107110.0,107100.0,1.1593049]
[1751071472978,0.00344601,107110.0,107100.0,1.44164049]
[1751071473180,0.00344601,107110.0,107100.0,1.45674049]
[1751071475067,0.00344601,107110.0,107100.0,1.26806049]
[1751071475285,0.00344601,107110.0,107100.0,1.45674049]
[1751071479528,0.00344601,107110.0,107100.0,1.1434049]
[1751071480054,0.00344601,107110.0,107100.0,0.71070931]
[1751071480203,0.01894601,107110.0,107100.0,1.1434049]
[1751071483435,0.00344601,107110.0,107100.0,1.1434049]
[1751071485105,0.02828142,107110.0,107100.0,1.1434049]
[1751071485312,0.01894601,107110.0,107100.0,1.1434049]
[1751071485939,0.00344601,107110.0,107100.0,1.1434049]
[1751071488437,0.00344601,107110.0,107100.0,1.1591049]
[1751071488634,0.00344601,107110.0,107100.0,1.1746049]
[1751071489073,0.00344601,107110.0,107100.0,1.45694049]
[1751071493107,0.00344601,107110.0,107100.0,1.1746049]
[1751071495102,0.00344601,107110.0,107100.0,1.45694049]
[1751071514767,0.00344601,107110.0,107100.0,0.89226931]
[1751071514995,0.00344601,107110.0,107100.0,1.45694049]
[1751071530482,0.00344601,107110.0,107100.0,1.1589849]
[1751071530984,0.00344601,107110.0,107100.0,1.1432849]
[1751071531414,0.00344601,107110.0,107100.0,1.1593849]
[1751071532953,0.00344601,107110.0,107100.0,1.1432849]
[1751071536831,0.00344601,107110.0,107100.0,1.1593849]
[1751071537845,0.00344601,107110.0,107100.0,1.44172049]
[1751071543702,0.00344601,107110.0,107100.0,0.87704931]
[1751071544110,0.00344601,107110.0,107100.0,1.1593849]
[1751071544657,0.00344601,107110.0,107100.0,1.1743849]
[1751071545245,0.00344601,107110.0,107100.0,1.45672049]
[1751071551376,0.00344601,107110.0,107100.0,1.48474649]
[1751071561552,0.00344601,107110.0,107100.0,1.76708208]
[1751071561964,0.00344601,107110.0,107100.0,1.48474649]
[1751071564271,0.00344601,107110.0,107100.0,1.76708208]
[1751071564733,0.00344601,107110.0,107100.0,1.48474649]
[1751071565137,0.00344601,107110.0,107100.0,1.76708208]
[1751071566119,0.00344601,107110.0,107100.0,1.48474649]
[1751071568090,0.00344601,107110.0,107100.0,1.81708208]
[1751071571617,0.00244601,107110.0,107100.0,1.81708208]
[1751071572003,0.00244601,107110.0,107100.0,1.81608208]
[1751071572204,0.00244601,107110.0,107100.0,1.81808208]
[1751071572366,0.00244601,107110.0,107100.0,1.82208208]
[1751071573169,0.00244601,107110.0,107100.0,1.82204208]
[1751071576255,0.0024,107130.0,107120.0,0.06454085]
[1751071576406,0.0024,107130.0,107120.0,4.86836179]
[1751071576611,0.0024,107130.0,107120.0,4.86602796]
[1751071576851,0.0024,107130.0,107120.0,4.86976296]
[1751071577340,0.0024,107130.0,107120.0,3.57749396]
[1751071578038,0.0024,107130.0,107120.0,3.58149396]
[1751071579331,0.0024,107130.0,107120.0,3.58449396]
[1751071580697,0.0024,107130.0,107120.0,3.59403153]
[1751071585295,0.0024,107130.0,107120.0,3.59473153]
[1751071586933,0.0004,107140.0,107130.0,3.58807721]
[1751071587190,0.0004,107140.0,107130.0,4.67804406]
[1751071588177,0.0004,107140.0,107130.0,4.68177906]
[1751071588439,0.0024,107150.0,107140.0,2.60991495]
[1751071588638,0.0024,107150.0,107140.0,2.79839495]
[1751071588639,0.00285985,107150.0,107140.0,2.79839495]
[1751071588809,0.00285985,107150.0,107140.0,3.11511503]
[1751071589551,0.00285985,107150.0,107140.0,3.16511503]
[1751071590140,0.00285985,107150.0,107140.0,3.19256857]
[1751071590521,0.00285985,107150.0,107140.0,3.19456857]
[1751071590724,0.00285985,107150.0,107140.0,2.94908366]
[1751071591003,0.00285985,107150.0,107140.0,2.95108366]
[1751071594312,0.00285985,107150.0,107140.0,2.95178366]
[1751071595455,0.00285985,107150.0,107140.0,6.38778966]
[1751071596036,0.00285985,107150.0,107140.0,6.21853766]
[1751071596974,0.0004,107160.0,107150.0,3.10476515]
[1751071597148,0.0005379,107160.0,107150.0,3.98110709]
[1751071597591,0.0005379,107160.0,107150.0,3.99690709]
[1751071598786,0.0005379,107160.0,107150.0,3.99790709]
[1751071599613,0.0005379,107160.0,107150.0,3.85782809]
[1751071599823,0.0005379,107160.0,107150.0,3.54479509]
[1751071600000,0.0005379,107160.0,107150.0,3.54679509]
[1751071600200,0.0005379,107160.0,107150.0,3.33099909]
[1751071600400,0.0005379,107160.0,107150.0,3.29162609]
[1751071601086,0.0005379,107160.0,107150.0,3.18285209]
[1751071601271,0.0005379,107160.0,107150.0,2.45108209]
[1751071603930,0.0005379,107160.0,107150.0,1.84956023]
[1751071604134,0.0005379,107160.0,107150.0,2.07563009]
[1751071604351,0.0005379,107160.0,107150.0,1.96619209]
[1751071607511,0.0005379,107160.0,107150.0,1.45096916]
[1751071607713,0.0005379,107160.0,107150.0,1.31474416]
[1751071608132,0.0005379,107160.0,107150.0,1.17193316]
[1751071608578,0.0005379,107160.0,107150.0,1.53629609]
[1751071608801,0.0005379,107160.0,107150.0,4.58252009]
[1751071609219,0.0005379,107160.0,107150.0,4.39380009]
[1751071609420,0.0005379,107160.0,107150.0,4.58248009]
[1751071610273,0.0005379,107160.0,107150.0,4.39380009]
[1751071610490,0.0005379,107160.0,107150.0,4.58248009]
[1751071611146,0.0005379,107160.0,107150.0,5.00184209]
[1751071612011,0.0005379,107160.0,107150.0,4.95424509]
[1751071612685,0.0005379,107160.0,107150.0,5.19852574]
[1751071614064,0.0005379,107160.0,107150.0,4.91659157]
[1751071615145,0.0005379,107160.0,107150.0,5.19852574]
[1751071617891,0.0005379,107160.0,107150.0,5.19922574]
[1751071620176,0.0005379,107160.0,107150.0,5.54035974]
[1751071621207,0.0005379,107160.0,107150.0,5.19141874]
[1751071621449,0.0005379,107160.0,107150.0,4.84976157]
[1751071622069,0.0005379,107160.0,107150.0,4.81983057]
[1751071622708,0.0005379,107160.0,107150.0,4.91810057]
[1751071622946,0.0005379,107160.0,107150.0,4.66939057]
[1751071623192,0.0005379,107160.0,107150.0,3.14543057]
[1751071624075,0.0005379,107160.0,107150.0,1.80723557]
[1751071624296,0.0005379,107160.0,107150.0,1.95775557]
[1751071625459,0.00013448,107160.0,107150.0,1.95775557]
[1751071625686,0.00013448,107160.0,107150.0,1.94175557]
[1751071628545,0.00013448,107160.0,107150.0,1.95775557]
[1751071629005,0.00013448,107160.0,107150.0,1.94175557]
[1751071630206,0.00013448,107160.0,107150.0,1.95775557]
[1751071631227,0.00013448,107160.0,107150.0,2.23968974]
[1751071631434,0.002,107170.0,107160.0,1.49477663]
[1751071631637,0.002,107170.0,107160.0,1.73809671]
[1751071631966,0.002,107170.0,107160.0,3.80116871]
[1751071633487,0.002,107170.0,107160.0,3.80216871]
[1751071635029,0.002,107170.0,107160.0,4.08410288]
[1751071635233,0.002,107170.0,107160.0,3.80216871]
[1751071638197,0.0004,107180.0,107170.0,0.61775409]
[1751071638415,0.0004,107180.0,107170.0,3.22186151]
[1751071639326,0.0004,107180.0,107170.0,3.24986451]
[1751071639551,0.0034,107180.0,107170.0,3.24986451]
[1751071642527,0.0034,107180.0,107170.0,3.47374451]
[1751071644243,0.0034,107180.0,107170.0,3.75567868]
[1751071645108,0.0014,107180.0,107170.0,3.75567868]
[1751071645454,0.0004,107180.0,107170.0,3.75567868]
[1751071645700,0.0004,107180.0,107170.0,3.76267868]
[1751071646528,0.0004,107180.0,107170.0,3.81267868]
[1751071647009,0.0004,107180.0,107170.0,3.76267868]
[1751071647213,0.0004,107180.0,107170.0,2.08635968]
[1751071647404,0.0004,107180.0,107170.0,4.47373468]
[1751071649135,0.0004,107180.0,107170.0,3.37876268]
[1751071649344,0.0004,107180.0,107170.0,3.32876268]
[1751071649605,0.0004,107180.0,107170.0,2.03898817]
[1751071649815,0.0004,107180.0,107170.0,2.26052751]
[1751071650359,0.0004,107180.0,107170.0,2.27632751]
[1751071651170,0.0004,107180.0,107170.0,2.22648751]
[1751071651643,0.0004,107180.0,107170.0,2.27648751]
[1751071651849,0.0004,107180.0,107170.0,2.26068751]
[1751071652246,0.0004,107180.0,107170.0,2.27598751]
[1751071653314,0.0004,107180.0,107170.0,2.22598751]
[1751071653525,0.0004,107180.0,107170.0,2.27598751]
[1751071654458,0.0004,107180.0,107170.0,2.29248751]
[1751071658134,0.0004,107180.0,107170.0,2.27598751]
[1751071658352,0.0004,107180.0,107170.0,2.57332168]
[1751071664295,0.0004,107180.0,107170.0,2.38364168]
[1751071664452,0.0004,107180.0,107170.0,2.57368168]
[1751071665974,0.0004,107180.0,107170.0,2.52368168]
[1751071666180,0.0004,107180.0,107170.0,2.57368168]
[1751071666379,0.0004,107180.0,107170.0,2.52368168]
[1751071666676,0.0004,107180.0,107170.0,1.72787917]
[1751071667131,0.0004,107180.0,107170.0,2.29174751]
[1751071667331,0.0004,107180.0,107170.0,2.24174751]
[1751071667521,0.0004,107180.0,107170.0,2.29174751]
[1751071672519,0.0004,107180.0,107170.0,2.27634751]
[1751071672724,0.0004,107180.0,107170.0,2.55828168]
[1751071672973,0.0004,107180.0,107170.0,2.07053968]
[1751071673174,0.0004,107180.0,107170.0,3.47000768]
[1751071675631,0.0004,107180.0,107170.0,3.42000768]
[1751071675858,0.0004,107180.0,107170.0,3.44223868]
[1751071676439,0.0004,107180.0,107170.0,3.46089868]
[1751071676688,0.0004,107180.0,107170.0,3.44223868]
[1751071677119,0.0004,107180.0,107170.0,3.25219868]
[1751071677372,0.0004,107180.0,107170.0,3.31287368]
[1751071677703,0.0004,107180.0,107170.0,3.21492468]
[1751071678291,0.0004,107180.0,107170.0,3.23002468]
[1751071679150,0.0004,107180.0,107170.0,3.18002468]
[1751071679361,0.0004,107180.0,107170.0,3.23002468]
[1751071679577,0.0004,107180.0,107170.0,3.18002468]
[1751071679793,0.0004,107180.0,107170.0,3.23002468]
[1751071680011,0.0004,107180.0,107170.0,3.21492468]
[1751071680675,0.0317,107180.0,107170.0,1.67418551]
[1751071680919,0.0317,107180.0,107170.0,1.22702849]
[1751071681103,0.0317,107180.0,107170.0,0.88702849]
[1751071681344,0.0317,107180.0,107170.0,0.56621432]
[1751071681529,0.0317,107180.0,107170.0,1.03510849]
[1751071681742,0.0317,107180.0,107170.0,1.04964934]
[1751071681898,0.0317,107180.0,107170.0,1.35764634]
[1751071682153,0.0317,107180.0,107170.0,1.00310549]
[1751071682367,0.0317,107180.0,107170.0,1.35860634]
[1751071682735,0.0317,107180.0,107170.0,1.37745536]
[1751071684864,0.0317,107180.0,107170.0,1.37645536]
[1751071685291,0.0327,107180.0,107170.0,1.37645536]
[1751071685512,0.0347,107180.0,107170.0,1.07567217]
[1751071685735,0.0347,107180.0,107170.0,1.37645536]
[1751071688853,0.0347,107180.0,107170.0,1.07567217]
[1751071689108,0.0347,107180.0,107170.0,1.37645536]
[1751071690132,0.0347,107180.0,107170.0,1.37629536]
[1751071691051,0.0347,107180.0,107170.0,1.18653536]
[1751071691281,0.0347,107180.0,107170.0,1.37629536]
[1751071693806,0.0347,107180.0,107170.0,1.07551217]
[1751071694199,0.0347,107180.0,107170.0,1.37629536]
[1751071696737,0.0347,107180.0,107170.0,1.07551217]
[1751071698206,0.0347,107180.0,107170.0,1.37629536]
[1751071701259,0.0347,107180.0,107170.0,1.07543217]
[1751071704788,0.0347,107180.0,107170.0,1.35743925]
[1751071705859,0.0347,107180.0,107170.0,1.07543217]
[1751071706069,0.0347,107180.0,107170.0,1.35743925]
[1751071709606,0.0192,107180.0,107170.0,1.35743925]
[1751071710440,0.0034,107180.0,107170.0,1.35743925]
[1751071719414,0.0034,107180.0,107170.0,5.70507325]
[1751071723637,0.0034,107180.0,107170.0,5.72087325]
[1751071724220,0.0034,107180.0,107170.0,5.73597325]
[1751071726051,0.0034,107180.0,107170.0,6.01798033]
[1751071726815,0.0024,107180.0,107170.0,6.01798033]
[1751071727635,0.0024,107180.0,107170.0,5.67034633]
[1751071727800,0.0004,107180.0,107170.0,5.67034633]
[1751071728290,0.0004,107180.0,107170.0,5.67134633]
[1751071731701,0.0004,107180.0,107170.0,5.10733217]
[1751071731946,0.0004,107180.0,107170.0,5.67134633]
[1751071735111,0.0004,107180.0,107170.0,5.38933925]
[1751071737481,0.0004,107180.0,107170.0,5.67134633]
[1751071739274,0.0004,107180.0,107170.0,5.38933925]
[1751071739792,0.0004,107180.0,107170.0,5.67134633]
[1751071740247,0.0004,107180.0,107170.0,5.07134633]
[1751071745132,0.0004,107180.0,107170.0,4.78933925]
[1751071745541,0.0004,107180.0,107170.0,4.81734625]
[1751071747975,0.0004,107180.0,107170.0,5.09935333]
[1751071748386,0.0004,107180.0,107170.0,4.81734625]
[1751071748884,0.0004,107180.0,107170.0,5.09935333]
[1751071749284,0.0004,107180.0,107170.0,4.81734625]
[1751071749444,0.0004,107180.0,107170.0,4.51734625]
[1751071751492,0.0004,107180.0,107170.0,4.79935333]
[1751071760657,0.0308,107180.0,107170.0,4.45863925]
[1751071760888,0.0157,107180.0,107170.0,4.45863925]
[1751071761305,0.0157,107180.0,107170.0,4.45763925]
[1751071761507,0.0187,107180.0,107170.0,4.45763925]
[1751071762673,0.0034,107180.0,107170.0,4.45763925]
[1751071767742,0.0361,107180.0,107170.0,4.45763925]
[1751071771324,0.0199,107180.0,107170.0,4.45763925]
[1751071773239,0.0034,107180.0,107170.0,4.45763925]
[1751071778185,0.0034,107180.0,107170.0,4.17563217]
[1751071778418,0.0034,107180.0,107170.0,4.45763925]
[1751071782005,0.0034,107180.0,107170.0,4.23379925]
[1751071787713,0.0034,107180.0,107170.0,4.24949925]
[1751071795920,0.0034,107180.0,107170.0,3.96749217]
[1751071796125,0.0034,107180.0,107170.0,4.24949925]
[1751071799854,0.0034,107180.0,107170.0,4.26599925]
[1751071801090,0.0034,107180.0,107170.0,4.24949925]
[1751071801703,0.0034,107180.0,107170.0,4.54800633]
[1751071802125,0.0034,107180.0,107170.0,4.26599925]
[1751071812684,0.0034,107180.0,107170.0,3.98399217]
[1751071812896,0.0034,107180.0,107170.0,4.24949925]
[1751071816850,0.0034,107180.0,107170.0,3.96749217]
[1751071817056,0.0034,107180.0,107170.0,4.24949925]
[1751071818365,0.0034,107180.0,107170.0,4.23379925]
[1751071818843,0.0356,107180.0,107170.0,4.23311925]
[1751071819742,0.0196,107180.0,107170.0,4.23311925]
[1751071821721,0.03965688,107180.0,107170.0,4.04391925]
[1751071821934,0.04632731,107180.0,107170.0,4.23311925]
[1751071822146,0.05565679,107180.0,107170.0,4.23311925]
[1751071824082,0.04632731,107180.0,107170.0,4.23311925]
[1751071824724,0.020998,107180.0,107170.0,4.23311925]
[1751071825822,0.03032731,107180.0,107170.0,4.23311925]
[1751071826499,0.020998,107180.0,107170.0,4.23311925]
[1751071826713,0.020998,107180.0,107170.0,3.95111217]
[1751071826930,0.020998,107180.0,107170.0,4.23311925]
[1751071828979,0.004798,107180.0,107170.0,4.23311925]
[1751071834873,0.004798,107180.0,107170.0,4.24891925]
[1751071838036,0.004798,107180.0,107170.0,4.26551925]
[1751071847612,0.004798,107180.0,107170.0,4.54752633]
[1751071848332,0.004798,107180.0,107170.0,4.26551925]
[1751071849231,0.004798,107180.0,107170.0,4.54752633]
[1751071849468,0.004798,107180.0,107170.0,4.26551925]
[1751071870162,0.004798,107180.0,107170.0,4.24891925]
[1751071880560,0.004798,107180.0,107170.0,4.26481925]
[1751071882432,0.004798,107180.0,107170.0,4.24891925]
[1751071894463,0.004798,107180.0,107170.0,4.26541925]
[1751071894742,0.0034,107180.0,107170.0,4.54742633]
[1751071897240,0.0034,107180.0,107170.0,4.60151148]
[1751071898141,0.0004,107180.0,107170.0,4.60151148]
[1751071898976,0.0004,107180.0,107170.0,4.60251148]
[1751071899993,0.0004,107180.0,107170.0,4.88451856]
[1751071900211,0.0004,107180.0,107170.0,5.02306948]
[1751071900647,0.0004,107180.0,107170.0,4.1291244]
[1751071900856,0.0004,107180.0,107170.0,4.2351384]
[1751071901064,0.0004,107180.0,107170.0,4.24967925]
[1751071902337,0.0004,107180.0,107170.0,4.06071925]
[1751071902547,0.0004,107180.0,107170.0,4.24967925]
[1751071904129,0.0004,107180.0,107170.0,4.23387925]
[1751071904713,0.0004,107180.0,107170.0,4.23287925]
[1751071905297,0.0014,107180.0,107170.0,4.23287925]
[1751071907185,0.0034,107180.0,107170.0,4.23287925]
[1751071908789,0.0034,107180.0,107170.0,4.24827925]
[1751071940806,0.0034,107180.0,107170.0,4.26447925]
[1751071943086,0.0034,107180.0,107170.0,4.24827925]
[1751071969919,0.0034,107180.0,107170.0,4.26377925]
[1751071970333,0.0034,107180.0,107170.0,4.54578633]
[1751071976526,0.31890508,107180.0,107170.0,3.80031217]
[1751071976752,0.04622731,107180.0,107170.0,4.23275925]
[1751071976970,0.036898,107180.0,107170.0,4.23275925]
[1751071977612,0.020998,107180.0,107170.0,4.23275925]
[1751071979760,0.33766431,107180.0,107170.0,3.93621132]
[1751071979963,0.05565723,107180.0,107170.0,3.93621132]
[1751071980181,0.05565723,107180.0,107170.0,4.2182184]
[1751071981048,0.06498715,107180.0,107170.0,4.2182184]
[1751071981620,0.73668912,107180.0,107170.0,3.72871034]
[1751071981928,1.38413388,107180.0,107170.0,3.1]
[1751071982091,1.18104096,107180.0,107170.0,3.1]
[1751071982272,0.8342928,107180.0,107170.0,3.1]
[1751071982689,0.8332928,107180.0,107170.0,3.1]
[1751071983047,0.8312928,107180.0,107170.0,3.1]
[1751071983262,0.9817328,107180.0,107170.0,3.1]
[1751071983473,0.9867328,107180.0,107170.0,3.1]
[1751071983852,0.8362928,107180.0,107170.0,3.1]
[1751071984673,0.8392928,107180.0,107170.0,3.1]
[1751071984896,1.02481296,107180.0,107170.0,3.1]
[1751071987528,1.02181296,107180.0,107170.0,3.1]
[1751071988358,1.02781296,107180.0,107170.0,3.1]
[1751072008343,1.04526983,107180.0,107170.0,3.1]
[1751072009319,1.06762459,107180.0,107170.0,3.1]
[1751072011176,1.41417342,107180.0,107170.0,3.1]
[1751072012242,1.40817342,107180.0,107170.0,3.1]
[1751072012465,1.41417342,107180.0,107170.0,3.101]
[1751072012892,1.44213059,107180.0,107170.0,3.101]
[1751072013528,1.42467372,107180.0,107170.0,3.101]
[1751072013951,1.41967372,107180.0,107170.0,3.101]
[1751072014149,1.43467372,107180.0,107170.0,3.102]
[1751072014812,1.34191364,107180.0,107170.0,3.102]
[1751072018248,1.31395647,107180.0,107170.0,3.102]
[1751072018667,1.46443647,107180.0,107170.0,3.102]
[1751072021189,1.45788764,107180.0,107170.0,3.102]
[1751072021400,1.46443928,107180.0,107170.0,3.102]
[1751072021982,1.46443928,107180.0,107170.0,3.0968]
[1751072022179,1.55593884,107180.0,107170.0,3.0968]
[1751072025958,1.55593884,107180.0,107170.0,2.6117]
[1751072028610,7.10593884,107180.0,107170.0,2.6117]
[1751072029253,7.14433884,107180.0,107170.0,2.6117]
[1751072029903,7.42634592,107180.0,107170.0,2.6117]
[1751072034242,1.87634592,107180.0,107170.0,2.6117]
[1751072034435,7.42634592,107180.0,107170.0,2.6117]
[1751072036012,7.45430309,107180.0,107170.0,2.6117]
[1751072046304,1.90430309,107180.0,107170.0,2.6117]
[1751072046483,7.45430309,107180.0,107170.0,2.6117]
[1751072048902,7.43830309,107180.0,107170.0,2.6117]
[1751072051916,7.47557932,107180.0,107170.0,2.6117]
[1751072053389,7.43830309,107180.0,107170.0,2.6117]
[1751072054010,7.14009601,107180.0,107170.0,2.6117]
[1751072054211,7.14009601,107180.0,107170.0,2.6267]
[1751072055664,7.14009601,107180.0,107170.0,2.6117]
[1751072056700,7.14009601,107180.0,107170.0,2.6267]
[1751072057145,0.74570229,107180.0,107170.0,2.6426]
[1751072057367,1.43223928,107180.0,107170.0,2.6426]
[1751072060899,1.43223928,107180.0,107170.0,2.6278]
[1751072061465,1.43223928,107180.0,107170.0,2.6438]
[1751072064602,1.40988452,107180.0,107170.0,2.6438]
[1751072064844,1.43226684,107180.0,107170.0,2.6438]
[1751072065385,1.52502692,107180.0,107170.0,2.6438]
[1751072083476,1.52502692,107180.0,107170.0,2.6278]
[1751072084503,1.5026446,107180.0,107170.0,2.6278]
[1751072084873,1.49609296,107180.0,107170.0,2.6278]
[1751072085965,1.49609296,107180.0,107170.0,2.6117]
[1751072086130,1.49609296,107180.0,107170.0,2.6277]
[1751072088203,1.50265178,107180.0,107170.0,2.6277]
[1751072092045,1.49609296,107180.0,107170.0,2.6277]
[1751072092196,1.50265405,107180.0,107170.0,2.6277]
[1751072094513,1.78466113,107180.0,107170.0,2.6117]
[1751072094733,1.50265405,107180.0,107170.0,2.6117]
[1751072096447,1.50265405,107180.0,107170.0,2.6273]
[1751072105397,1.55304379,107180.0,107170.0,2.6273]
[1751072108019,1.55304388,107180.0,107170.0,2.6273]
[1751072115295,1.83505096,107180.0,107170.0,2.6117]
[1751072115527,1.88505096,107180.0,107170.0,2.6117]
[1751072120677,1.92345096,107180.0,107170.0,2.6117]
[1751072122170,1.92345096,107180.0,107170.0,2.6275]
[1751072122836,1.87345096,107180.0,107170.0,2.6275]
[1751072123042,1.92345096,107180.0,107170.0,2.6275]
[1751072128521,7.42345096,107180.0,107170.0,2.6275]
[1751072128756,7.47345096,107180.0,107170.0,2.6275]
[1751072132705,7.42345096,107180.0,107170.0,2.6275]